Workbook

Sheet Sheet1
A1: Countercurrent Tube-in-tube Heat Exchanger
H2: Hot outlet temperature | L2: Error2
A3: Tubing specs | D3: density | E3: 988 | F3: kg/m3 | H3: Tho | I3: 42.07659399 | J3: degC | L3: =(Thi-K106)^2 -> 5.048709793e-29
A4: Outer | B4: 11 | C4: BWG | D4: Heat capacity
A5: OD | B5: 2 | C5: inches | D5: Cp | E5: 4186.8 | F5: J/kg/degC | H5: Index | I5: Distance | J5: Tc | K5: Th | L5: dTc/dz | M5: dTh/dz
B6: =B5*0.0254 -> 0.0508 | C6: m | D6: Flow rates | H6: 0 | I6: =L*H6/100 -> 0 | J6: =Tci -> 10 | K6: =Tho -> 42.07659399 | L6: =hi*Ai/wc/Cp*(K6-J6) -> 7.837815178 | M6: =ho*Ao/wh/Cp*(K6-J6) -> 2.351344553
A7: ID | B7: 1.76 | C7: inches | D7: Shell/hot | E7: 1 | F7: L/s | H7: 1 | I7: =L*H7/100 -> 0.05 | J7: =J6+L6*(I7-I6) -> 10.39189076 | K7: =K6+M6*(I7-I6) -> 42.19416122 | L7: =hi*Ai/wc/Cp*(K7-J7) -> 7.770785083 | M7: 2.331235525
B8: =B7*0.0254 -> 0.044704 | C8: m | E8: =E7/1000 -> 0.001 | F8: m3/s | H8: 2 | I8: =L*H8/100 -> 0.1 | J8: =J7+L7*(I8-I7) -> 10.78043001 | K8: =K7+M7*(I8-I7) -> 42.310723 | L8: =hi*Ai/wc/Cp*(K8-J8) -> 7.704328239 | M8: 2.311298472
A9: Inside Area | B9: =PI()*B7^2/4 -> 2.432849351 | C9: in2 | D9: wh | E9: =E8*density -> 0.988 | F9: kg/s | H9: 3 | I9: =L*H9/100 -> 0.15 | J9: 11.16564643 | K9: 42.42628792 | L9: =hi*Ai/wc/Cp*(K9-J9) -> 7.638439743 | M9: 2.291531923
B10: =PI()*B8^2/4 -> 0.001569577087 | C10: m2 | D10: Tube/cold | E10: 0.3 | F10: L/s | H10: 4 | I10: =L*H10/100 -> 0.2 | J10: 11.54756841 | K10: 42.54086452 | L10: =hi*Ai/wc/Cp*(K10-J10) -> 7.573114735 | M10: 2.271934421
A11: Inner | B11: 11 | C11: BWG | E11: =E10/1000 -> 0.0003 | F11: m3/s | H11: 5 | I11: =L*H11/100 -> 0.25 | J11: 11.92622415 | K11: 42.65446124 | L11: =hi*Ai/wc/Cp*(K11-J11) -> 7.508348396 | M11: 2.252504519
A12: OD | B12: 1 | C12: inch | D12: wc | E12: =E11*density -> 0.2964 | F12: kg/s | H12: 6 | I12: =L*H12/100 -> 0.3 | J12: 12.30164157 | K12: 42.76708646 | L12: =hi*Ai/wc/Cp*(K12-J12) -> 7.444135947 | M12: 2.233240784
A13: Do | B13: =B12*0.0254 -> 0.0254 | C13: m | D13: Linear velocities | H13: 7 | I13: =L*H13/100 -> 0.35 | J13: 12.67384837 | K13: 42.8787485 | L13: =hi*Ai/wc/Cp*(K13-J13) -> 7.380472652 | M13: 2.214141796
A14: ID | B14: 0.76 | C14: inches | D14: Shell/hot | E14: =E8/(B10-B17) -> 0.9408491807 | F14: m/s | H14: 8 | I14: =L*H14/100 -> 0.4 | J14: 13.042872 | K14: 42.98945559 | L14: =hi*Ai/wc/Cp*(K14-J14) -> 7.317353815 | M14: 2.195206144
A15: Di | B15: =B14*0.0254 -> 0.019304 | C15: m | D15: Tube/cold | E15: =E11/B19 -> 1.025030423 | F15: m/s | H15: 9 | I15: =L*H15/100 -> 0.45 | J15: 13.40873969 | K15: 43.0992159 | L15: =hi*Ai/wc/Cp*(K15-J15) -> 7.254774779 | M15: 2.176432434
A16: Outside Area | B16: =PI()*B12^2/4 -> 0.7853981634 | C16: in2 | D16: Heat transfer coefficient | H16: 10 | I16: =L*H16/100 -> 0.5 | J16: 13.77147843 | K16: 43.20803752 | L16: =hi*Ai/wc/Cp*(K16-J16) -> 7.192730927 | M16: 2.157819278
B17: =PI()*Do^2/4 -> 0.0005067074791 | C17: m2 | D17: hi | E17: 5000 | F17: W/m2/degC | H17: 11 | I17: =L*H17/100 -> 0.55 | J17: 14.13111497 | K17: 43.31592848 | L17: =hi*Ai/wc/Cp*(K17-J17) -> 7.131217683 | M17: 2.139365305
A18: Inside Area | B18: =PI()*B14^2/4 -> 0.4536459792 | C18: in2 | D18: ho | E18: =hi*Di/Do -> 3800 | F18: W/m2/degC | H18: 12 | I18: =L*H18/100 -> 0.6 | J18: 14.48767586 | K18: 43.42289675 | L18: =hi*Ai/wc/Cp*(K18-J18) -> 7.070230509 | M18: 2.121069153
B19: =PI()*Di^2/4 -> 0.0002926742399 | C19: m2 | D19: Heat transfer areas/length | H19: 13 | I19: =L*H19/100 -> 0.65 | J19: 14.84118738 | K19: 43.52895021 | L19: =hi*Ai/wc/Cp*(K19-J19) -> 7.009764906 | M19: 2.102929472
A20: Length -- L | B20: 5 | C20: m | D20: Ai | E20: =PI()*Di -> 0.06064530458 | F20: m2/m | H20: 14 | I20: =L*H20/100 -> 0.7 | J20: 15.19167563 | K20: 43.63409668 | L20: =hi*Ai/wc/Cp*(K20-J20) -> 6.949816413 | M20: 2.084944924
D21: Ao | E21: =PI()*Do -> 0.0797964534 | F21: m2/m | H21: 15 | I21: =L*H21/100 -> 0.75 | J21: 15.53916645 | K21: 43.73834393 | L21: =hi*Ai/wc/Cp*(K21-J21) -> 6.890380609 | M21: 2.067114183
D22: Inlet temperatures | H22: 16 | I22: =L*H22/100 -> 0.8 | J22: 15.88368548 | K22: 43.84169964 | L22: =hi*Ai/wc/Cp*(K22-J22) -> 6.831453107 | M22: 2.049435932
D23: Hot - Thi | E23: 50 | F23: degC | H23: 17 | I23: =L*H23/100 -> 0.85 | J23: 16.22525814 | K23: 43.94417143 | L23: =hi*Ai/wc/Cp*(K23-J23) -> 6.773029562 | M23: 2.031908869
D24: Cold - Tci | E24: 10 | F24: degC | H24: 18 | I24: =L*H24/100 -> 0.9 | J24: 16.56390961 | K24: 44.04576688 | L24: =hi*Ai/wc/Cp*(K24-J24) -> 6.715105663 | M24: 2.014531699
H25: 19 | I25: =L*H25/100 -> 0.95 | J25: 16.8996649 | K25: 44.14649346 | L25: =hi*Ai/wc/Cp*(K25-J25) -> 6.657677137 | M25: 1.997303141
H26: 20 | I26: =L*H26/100 -> 1 | J26: 17.23254875 | K26: 44.24635862 | L26: =hi*Ai/wc/Cp*(K26-J26) -> 6.600739749 | M26: 1.980221925
H27: 21 | I27: =L*H27/100 -> 1.05 | J27: 17.56258574 | K27: 44.34536971 | L27: =hi*Ai/wc/Cp*(K27-J27) -> 6.544289297 | M27: 1.963286789
H28: 22 | I28: =L*H28/100 -> 1.1 | J28: 17.88980021 | K28: 44.44353405 | L28: =hi*Ai/wc/Cp*(K28-J28) -> 6.488321616 | M28: 1.946496485
H29: 23 | I29: =L*H29/100 -> 1.15 | J29: 18.21421629 | K29: 44.54085888 | L29: =hi*Ai/wc/Cp*(K29-J29) -> 6.43283258 | M29: 1.929849774
H30: 24 | I30: =L*H30/100 -> 1.2 | J30: 18.53585792 | K30: 44.63735137 | L30: =hi*Ai/wc/Cp*(K30-J30) -> 6.377818093 | M30: 1.913345428
H31: 25 | I31: =L*H31/100 -> 1.25 | J31: 18.85474882 | K31: 44.73301864 | L31: =hi*Ai/wc/Cp*(K31-J31) -> 6.323274098 | M31: 1.89698223
H32: 26 | I32: =L*H32/100 -> 1.3 | J32: 19.17091253 | K32: 44.82786775 | L32: =hi*Ai/wc/Cp*(K32-J32) -> 6.269196571 | M32: 1.880758971
H33: 27 | I33: =L*H33/100 -> 1.35 | J33: 19.48437235 | K33: 44.9219057 | L33: =hi*Ai/wc/Cp*(K33-J33) -> 6.215581523 | M33: 1.864674457
H34: 28 | I34: =L*H34/100 -> 1.4 | J34: 19.79515143 | K34: 45.01513942 | L34: =hi*Ai/wc/Cp*(K34-J34) -> 6.162424998 | M34: 1.848727499
H35: 29 | I35: =L*H35/100 -> 1.45 | J35: 20.10327268 | K35: 45.1075758 | L35: =hi*Ai/wc/Cp*(K35-J35) -> 6.109723075 | M35: 1.832916922
H36: 30 | I36: =L*H36/100 -> 1.5 | J36: 20.40875883 | K36: 45.19922164 | L36: =hi*Ai/wc/Cp*(K36-J36) -> 6.057471866 | M36: 1.81724156
H37: 31 | I37: =L*H37/100 -> 1.55 | J37: 20.71163243 | K37: 45.29008372 | L37: =hi*Ai/wc/Cp*(K37-J37) -> 6.005667517 | M37: 1.801700255
H38: 32 | I38: =L*H38/100 -> 1.6 | J38: 21.0119158 | K38: 45.38016873 | L38: =hi*Ai/wc/Cp*(K38-J38) -> 5.954306206 | M38: =ho*Ao/wh/Cp*(K38-J38) -> 1.786291862
H39: 33 | I39: =L*H39/100 -> 1.65 | J39: 21.30963111 | K39: 45.46948333 | L39: =hi*Ai/wc/Cp*(K39-J39) -> 5.903384144 | M39: 1.771015243
H40: 34 | I40: =L*H40/100 -> 1.7 | J40: 21.60480032 | K40: 45.55803409 | L40: =hi*Ai/wc/Cp*(K40-J40) -> 5.852897575 | M40: 1.755869272
H41: 35 | I41: =L*H41/100 -> 1.75 | J41: 21.8974452 | K41: 45.64582755 | L41: =hi*Ai/wc/Cp*(K41-J41) -> 5.802842774 | M41: 1.740852832
H42: 36 | I42: =L*H42/100 -> 1.8 | J42: 22.18758734 | K42: 45.73287019 | L42: =hi*Ai/wc/Cp*(K42-J42) -> 5.753216048 | M42: 1.725964815
H43: 37 | I43: =L*H43/100 -> 1.85 | J43: 22.47524814 | K43: 45.81916843 | L43: =hi*Ai/wc/Cp*(K43-J43) -> 5.704013738 | M43: 1.711204121
H44: 38 | I44: =L*H44/100 -> 1.9 | J44: 22.76044883 | K44: 45.90472864 | L44: =hi*Ai/wc/Cp*(K44-J44) -> 5.655232212 | M44: 1.696569664
H45: 39 | I45: =L*H45/100 -> 1.95 | J45: 23.04321044 | K45: 45.98955712 | L45: =hi*Ai/wc/Cp*(K45-J45) -> 5.606867873 | M45: 1.682060362
H46: 40 | I46: =L*H46/100 -> 2 | J46: 23.32355383 | K46: 46.07366014 | L46: =hi*Ai/wc/Cp*(K46-J46) -> 5.558917152 | M46: 1.667675146
H47: 41 | I47: =L*H47/100 -> 2.05 | J47: 23.60149969 | K47: 46.1570439 | L47: =hi*Ai/wc/Cp*(K47-J47) -> 5.511376513 | M47: 1.653412954
H48: 42 | I48: =L*H48/100 -> 2.1 | J48: 23.87706852 | K48: 46.23971455 | L48: =hi*Ai/wc/Cp*(K48-J48) -> 5.464242448 | M48: 1.639272734
H49: 43 | I49: =L*H49/100 -> 2.15 | J49: 24.15028064 | K49: 46.32167818 | L49: =hi*Ai/wc/Cp*(K49-J49) -> 5.41751148 | M49: 1.625253444
H50: 44 | I50: =L*H50/100 -> 2.2 | J50: 24.42115621 | K50: 46.40294086 | L50: =hi*Ai/wc/Cp*(K50-J50) -> 5.371180162 | M50: 1.611354049
H51: 45 | I51: =L*H51/100 -> 2.25 | J51: 24.68971522 | K51: 46.48350856 | L51: =hi*Ai/wc/Cp*(K51-J51) -> 5.325245076 | M51: 1.597573523
H52: 46 | I52: =L*H52/100 -> 2.3 | J52: 24.95597747 | K52: 46.56338723 | L52: =hi*Ai/wc/Cp*(K52-J52) -> 5.279702833 | M52: 1.58391085
H53: 47 | I53: =L*H53/100 -> 2.35 | J53: 25.21996262 | K53: 46.64258278 | L53: =hi*Ai/wc/Cp*(K53-J53) -> 5.234550074 | M53: 1.570365022
H54: 48 | I54: =L*H54/100 -> 2.4 | J54: 25.48169012 | K54: 46.72110103 | L54: =hi*Ai/wc/Cp*(K54-J54) -> 5.189783467 | M54: 1.55693504
H55: 49 | I55: =L*H55/100 -> 2.45 | J55: 25.74117929 | K55: 46.79894778 | L55: =hi*Ai/wc/Cp*(K55-J55) -> 5.145399711 | M55: 1.543619913
H56: 50 | I56: =L*H56/100 -> 2.5 | J56: 25.99844928 | K56: 46.87612878 | L56: =hi*Ai/wc/Cp*(K56-J56) -> 5.101395531 | M56: 1.530418659
H57: 51 | I57: =L*H57/100 -> 2.55 | J57: 26.25351905 | K57: 46.95264971 | L57: =hi*Ai/wc/Cp*(K57-J57) -> 5.057767681 | M57: 1.517330304
H58: 52 | I58: =L*H58/100 -> 2.6 | J58: 26.50640744 | K58: 47.02851622 | L58: =hi*Ai/wc/Cp*(K58-J58) -> 5.014512942 | M58: 1.504353883
H59: 53 | I59: =L*H59/100 -> 2.65 | J59: 26.75713309 | K59: 47.10373392 | L59: =hi*Ai/wc/Cp*(K59-J59) -> 4.971628124 | M59: 1.491488437
H60: 54 | I60: =L*H60/100 -> 2.7 | J60: 27.00571449 | K60: 47.17830834 | L60: =hi*Ai/wc/Cp*(K60-J60) -> 4.929110063 | M60: 1.478733019
H61: 55 | I61: =L*H61/100 -> 2.75 | J61: 27.25216999 | K61: 47.25224499 | L61: =hi*Ai/wc/Cp*(K61-J61) -> 4.886955623 | M61: 1.466086687
H62: 56 | I62: =L*H62/100 -> 2.8 | J62: 27.49651778 | K62: 47.32554933 | L62: =hi*Ai/wc/Cp*(K62-J62) -> 4.845161693 | M62: 1.453548508
H63: 57 | I63: =L*H63/100 -> 2.85 | J63: 27.73877586 | K63: 47.39822675 | L63: =hi*Ai/wc/Cp*(K63-J63) -> 4.80372519 | M63: 1.441117557
H64: 58 | I64: =L*H64/100 -> 2.9 | J64: 27.97896212 | K64: 47.47028263 | L64: =hi*Ai/wc/Cp*(K64-J64) -> 4.762643058 | M64: 1.428792918
H65: 59 | I65: =L*H65/100 -> 2.95 | J65: 28.21709427 | K65: 47.54172227 | L65: =hi*Ai/wc/Cp*(K65-J65) -> 4.721912267 | M65: 1.41657368
H66: 60 | I66: =L*H66/100 -> 3 | J66: 28.45318989 | K66: 47.61255096 | L66: =hi*Ai/wc/Cp*(K66-J66) -> 4.681529811 | M66: 1.404458943
H67: 61 | I67: =L*H67/100 -> 3.05 | J67: 28.68726638 | K67: 47.68277391 | L67: =hi*Ai/wc/Cp*(K67-J67) -> 4.641492711 | M67: 1.392447813
H68: 62 | I68: =L*H68/100 -> 3.1 | J68: 28.91934101 | K68: 47.7523963 | L68: =hi*Ai/wc/Cp*(K68-J68) -> 4.601798015 | M68: 1.380539404
H69: 63 | I69: =L*H69/100 -> 3.15 | J69: 29.14943091 | K69: 47.82142327 | L69: =hi*Ai/wc/Cp*(K69-J69) -> 4.562442792 | M69: 1.368732838
H70: 64 | I70: =L*H70/100 -> 3.2 | J70: 29.37755305 | K70: 47.88985991 | L70: =hi*Ai/wc/Cp*(K70-J70) -> 4.523424142 | M70: =ho*Ao/wh/Cp*(K70-J70) -> 1.357027243
H71: 65 | I71: =L*H71/100 -> 3.25 | J71: 29.60372426 | K71: 47.95771127 | L71: =hi*Ai/wc/Cp*(K71-J71) -> 4.484739184 | M71: 1.345421755
H72: 66 | I72: =L*H72/100 -> 3.3 | J72: =J71+L71*(I72-I71) -> 29.82796122 | K72: =K71+M71*(I72-I71) -> 48.02498236 | L72: =hi*Ai/wc/Cp*(K72-J72) -> 4.446385065 | M72: 1.33391552
H73: 67 | I73: =L*H73/100 -> 3.35 | J73: 30.05028047 | K73: 48.09167813 | L73: =hi*Ai/wc/Cp*(K73-J73) -> 4.408358957 | M73: 1.322507687
H74: 68 | I74: =L*H74/100 -> 3.4 | J74: 30.27069842 | K74: 48.15780352 | L74: =hi*Ai/wc/Cp*(K74-J74) -> 4.370658052 | M74: 1.311197416
H75: 69 | I75: =L*H75/100 -> 3.45 | J75: 30.48923132 | K75: 48.22336339 | L75: =hi*Ai/wc/Cp*(K75-J75) -> 4.333279572 | M75: 1.299983872
H76: 70 | I76: =L*H76/100 -> 3.5 | J76: 30.7058953 | K76: 48.28836258 | L76: =hi*Ai/wc/Cp*(K76-J76) -> 4.296220757 | M76: 1.288866227
H77: 71 | I77: =L*H77/100 -> 3.55 | J77: 30.92070634 | K77: 48.35280589 | L77: =hi*Ai/wc/Cp*(K77-J77) -> 4.259478874 | M77: 1.277843662
H78: 72 | I78: =L*H78/100 -> 3.6 | J78: 31.13368028 | K78: 48.41669808 | L78: =hi*Ai/wc/Cp*(K78-J78) -> 4.223051214 | M78: 1.266915364
H79: 73 | I79: =L*H79/100 -> 3.65 | J79: 31.34483284 | K79: 48.48004385 | L79: =hi*Ai/wc/Cp*(K79-J79) -> 4.186935087 | M79: 1.256080526
H80: 74 | I80: =L*H80/100 -> 3.7 | J80: 31.5541796 | K80: 48.54284787 | L80: =hi*Ai/wc/Cp*(K80-J80) -> 4.151127831 | M80: 1.245338349
H81: 75 | I81: =L*H81/100 -> 3.75 | J81: 31.76173599 | K81: 48.60511479 | L81: =hi*Ai/wc/Cp*(K81-J81) -> 4.115626804 | M81: 1.234688041
H82: 76 | I82: =L*H82/100 -> 3.8 | J82: 31.96751733 | K82: 48.66684919 | L82: =hi*Ai/wc/Cp*(K82-J82) -> 4.080429386 | M82: 1.224128816
H83: 77 | I83: =L*H83/100 -> 3.85 | J83: 32.1715388 | K83: 48.72805563 | L83: =hi*Ai/wc/Cp*(K83-J83) -> 4.045532981 | M83: 1.213659894
H84: 78 | I84: =L*H84/100 -> 3.9 | J84: 32.37381545 | K84: 48.78873863 | L84: =hi*Ai/wc/Cp*(K84-J84) -> 4.010935016 | M84: 1.203280505
H85: 79 | I85: =L*H85/100 -> 3.95 | J85: 32.5743622 | K85: 48.84890265 | L85: =hi*Ai/wc/Cp*(K85-J85) -> 3.976632937 | M85: 1.192989881
H86: 80 | I86: =L*H86/100 -> 4 | J86: 32.77319385 | K86: 48.90855215 | L86: =hi*Ai/wc/Cp*(K86-J86) -> 3.942624214 | M86: 1.182787264
H87: 81 | I87: =L*H87/100 -> 4.05 | J87: 32.97032506 | K87: 48.96769151 | L87: =hi*Ai/wc/Cp*(K87-J87) -> 3.908906339 | M87: 1.172671902
H88: 82 | I88: =L*H88/100 -> 4.1 | J88: 33.16577037 | K88: 49.0263251 | L88: =hi*Ai/wc/Cp*(K88-J88) -> 3.875476824 | M88: 1.162643047
H89: 83 | I89: =L*H89/100 -> 4.15 | J89: 33.35954421 | K89: 49.08445726 | L89: =hi*Ai/wc/Cp*(K89-J89) -> 3.842333202 | M89: 1.152699961
H90: 84 | I90: =L*H90/100 -> 4.2 | J90: 33.55166087 | K90: 49.14209225 | L90: =hi*Ai/wc/Cp*(K90-J90) -> 3.80947303 | M90: 1.142841909
H91: 85 | I91: =L*H91/100 -> 4.25 | J91: 33.74213453 | K91: 49.19923435 | L91: =hi*Ai/wc/Cp*(K91-J91) -> 3.776893882 | M91: 1.133068165
H92: 86 | I92: =L*H92/100 -> 4.3 | J92: 33.93097922 | K92: 49.25588776 | L92: =hi*Ai/wc/Cp*(K92-J92) -> 3.744593356 | M92: 1.123378007
H93: 87 | I93: =L*H93/100 -> 4.35 | J93: 34.11820889 | K93: 49.31205666 | L93: =hi*Ai/wc/Cp*(K93-J93) -> 3.712569068 | M93: 1.11377072
H94: 88 | I94: =L*H94/100 -> 4.4 | J94: 34.30383734 | K94: 49.36774519 | L94: =hi*Ai/wc/Cp*(K94-J94) -> 3.680818657 | M94: 1.104245597
H95: 89 | I95: =L*H95/100 -> 4.45 | J95: 34.48787827 | K95: 49.42295747 | L95: =hi*Ai/wc/Cp*(K95-J95) -> 3.649339779 | M95: 1.094801934
H96: 90 | I96: =L*H96/100 -> 4.5 | J96: 34.67034526 | K96: 49.47769757 | L96: =hi*Ai/wc/Cp*(K96-J96) -> 3.618130114 | M96: 1.085439034
H97: 91 | I97: =L*H97/100 -> 4.55 | J97: 34.85125177 | K97: 49.53196952 | L97: =hi*Ai/wc/Cp*(K97-J97) -> 3.587187357 | M97: 1.076156207
H98: 92 | I98: =L*H98/100 -> 4.6 | J98: 35.03061114 | K98: 49.58577733 | L98: =hi*Ai/wc/Cp*(K98-J98) -> 3.556509228 | M98: 1.066952768
H99: 93 | I99: =L*H99/100 -> 4.65 | J99: 35.2084366 | K99: 49.63912497 | L99: =hi*Ai/wc/Cp*(K99-J99) -> 3.526093462 | M99: 1.057828039
H100: 94 | I100: =L*H100/100 -> 4.7 | J100: 35.38474127 | K100: 49.69201637 | L100: =hi*Ai/wc/Cp*(K100-J100) -> 3.495937816 | M100: 1.048781345
H101: 95 | I101: =L*H101/100 -> 4.75 | J101: 35.55953816 | K101: 49.74445544 | L101: =hi*Ai/wc/Cp*(K101-J101) -> 3.466040066 | M101: 1.03981202
H102: 96 | I102: =L*H102/100 -> 4.8 | J102: 35.73284017 | K102: 49.79644604 | L102: =hi*Ai/wc/Cp*(K102-J102) -> 3.436398005 | M102: 1.030919401
H103: 97 | I103: =L*H103/100 -> 4.85 | J103: 35.90466007 | K103: 49.84799201 | L103: =hi*Ai/wc/Cp*(K103-J103) -> 3.407009447 | M103: 1.022102834
H104: 98 | I104: =L*H104/100 -> 4.9 | J104: 36.07501054 | K104: 49.89909715 | L104: =hi*Ai/wc/Cp*(K104-J104) -> 3.377872224 | M104: 1.013361667
H105: 99 | I105: =L*H105/100 -> 4.95 | J105: 36.24390415 | K105: 49.94976524 | L105: =hi*Ai/wc/Cp*(K105-J105) -> 3.348984187 | M105: 1.004695256
H106: 100 | I106: =L*H106/100 -> 5 | J106: 36.41135336 | K106: 50 | L106: =hi*Ai/wc/Cp*(K106-J106) -> 3.320343205 | M106: 0.9961029614
